Cogmind - Beta 16.1 @@@ ROGUE MODE // 2026.01.07 @ 19:44:53 Player: BlobtheGreat Result: Destroyed by Decapitator with Experimental Terror Saw Performance ------------- Evolutions (8) 4000 Regions Visited (24) 4800 Robots Destroyed (208) 1040 Value Destroyed (7997) 7997 Prototype IDs (135) 2700 Alien Tech Used (7) 1400 Bonus (4891) 4891 TOTAL SCORE: 26828 Bonus ------- High Alert Combat Kills 61 Follower Combat Kills 1341 Registered with UFD 300 Met Optimus in HQ 500 Met Zhirov 300 Met Warlord at Base 500 MAIN.C Attacked Warlord 500 Warlord Defense Kills 462 Hacked Protovariant 500 Scanned by Researcher 500 Friendly Fire -73 Cogmind --------- Core Integrity 0/1450 Matter 275/300 Energy 367/1400 System Corruption 37% Temperature Cool (0) Movement Hovering (52) Location -2/Protoforge Parts ------- > --- POWER (2) -------- Hybrid Graviton Reactor (fused) > --- PROPULSION (7) --- Combat Linear Gravjet Experimental Antigrav System Gravjet Array Gravjet Array Concept Gyrokinetic System > --- UTILITY (12) ----- Experimental Signal Interpreter Experimental Weapon Shielding Concept RG22 Armor > --- WEAPON (2) ------- Experimental Terror Saw Experimental Jetlance > --- INVENTORY (5) ---- Nanoactuators Experimental Force Field Enhanced Nova Cannon Core Stripper Peak State ------------ > --- POWER ------------ Vortex Chain Reactor > --- PROPULSION ------- Antigrav Array Combat Linear Gravjet Combat Linear Gravjet Combat Linear Gravjet Combat Linear Gravjet Combat Linear Gravjet > --- UTILITY ---------- 2N-1CE's Frost Array Large Storage Unit Triangulator Long-range Sensor Array Experimental Signal Interpreter Long-range Terrain Scanner Advanced Terrain Scan Processor Experimental Melee Analysis Suite Experimental Core Analyzer Heavy Regenerative Plating Advanced Hacking Suite > --- WEAPON ----------- Enhanced Nova Cannon Advanced Remote Datajack > --- INVENTORY -------- Compact Particle Reactor Compact Particle Reactor Advanced Sensor Array Nanoactuators Experimental ECM Suite Centrium Medium Armor Plating Graphene Brace AEGIS Remote Shield Transdimensional Reconstructor Core Cannon Multirail Mini Grenade Launcher CPS Tube Vortex Lance [Rating: 193] Favorites ----------- Power Reinforced Ion Engine Engine Reinforced Ion Engine Power Core Micro Fission Core Reactor Particle Reactor Propulsion Light Treads Treads Light Treads Leg Titanium Leg Hover Unit Combat Linear Gravjet Utility High-capacity Storage Unit Device Triangulator Storage High-capacity Storage Unit Processor Experimental Terrain Scan Processor Hackware Advanced Hacking Suite Protection Improved Medium Armor Plating Weapon Light Cannon Energy Gun Gatling Laser Energy Cannon Enhanced Nova Cannon Ballistic Gun Improved Assault Rifle Ballistic Cannon Light Cannon Launcher Mini Grenade Launcher Special Weapon Mining Laser Impact Weapon Core Stripper Slashing Weapon DM-GVY's Chainsaw Piercing Weapon Enhanced Force Lance Build | -11 -10 -10 -9 -9 -8 -7 -7 -7 -7 -5 -5 -5 -5 -4 -4 -4 -4 -4 -3 -3 -3 -2 -2 -2 ------- Run | Yrd Mat Min Mat Min Mat Fac Sto Rec Scr Fac Upp Upp War Pro Fac Upp Upp Zhi Pro Res Tes Res Qua Frg Slots Evolved 16 | . . . 2 . 2 2 . . . 4 . . . . 2 . . . . 2 . 2 . . Power 1 | . . . . . . . . . . 1 . . . . . . . . . . . . . . Propulsion 5 | . . . 1 . 1 1 . . . 1 . . . . . . . . . . . 1 . . Utility 10 | . . . 1 . 1 1 . . . 2 . . . . 2 . . . . 2 . 1 . . Weapon . | . . . . . . . . . . . . . . . . . . . . . . . . . Parts Attached 204 | 8 8 1 20 1 22 20 3 5 12 10 . . 17 3 9 1 4 4 . 8 15 6 5 22 Power 19 | 1 2 . . . 3 4 . . . 2 . . 1 1 1 . . 1 . . 1 . 1 1 Engine 8 | 1 2 . . . 2 3 . . . . . . . . . . . . . . . . . . Core 5 | . . . . . 1 1 . . . 2 . . 1 . . . . . . . . . . . Reactor 6 | . . . . . . . . . . . . . . 1 1 . . 1 . . 1 . 1 1 Propulsion 57 | 2 . . 8 . 11 4 . 5 4 2 . . 7 . 1 . . . . 3 1 . . 9 Treads 17 | 2 . . 8 . 7 . . . . . . . . . . . . . . . . . . . Leg 8 | . . . . . 4 4 . . . . . . . . . . . . . . . . . . Wheel . | . . . . . . . . . . . . . . . . . . . . . . . . . Hover 32 | . . . . . . . . 5 4 2 . . 7 . 1 . . . . 3 1 . . 9 Flight . | . . . . . . . . . . . . . . . . . . . . . . . . . Utility 75 | 2 1 1 5 . 5 7 1 . 3 5 . . 7 2 6 . 2 3 . 5 8 4 2 6 Device 26 | 1 . . 1 . 1 3 . . 1 1 . . 5 2 3 . . 1 . . 3 1 1 2 Storage 7 | 1 . 1 1 . . . . . 1 . . . . . . . 1 2 . . . . . . Processor 16 | . . . . . 1 2 . . 1 2 . . 1 . 2 . . . . 2 3 1 1 . Hackware 4 | . . . . . . . . . . 1 . . . . . . . . . 2 . 1 . . Protection 22 | . 1 . 3 . 3 2 1 . . 1 . . 1 . 1 . 1 . . 1 2 1 . 4 Artifact . | . . . . . . . . . . . . . . . . . . . . . . . . . Weapon 53 | 3 5 . 7 1 3 5 2 . 5 1 . . 2 . 1 1 2 . . . 5 2 2 6 Energy Gun 10 | 2 2 . . . . 3 2 . . . . . . . . . . . . . 1 . . . Energy Cannon 3 | . . . . . . . . . . . . . . . . . . . . . 1 1 . 1 Ballistic Gun 12 | . 1 . 5 . 3 1 . . . . . . . . . . . . . . 1 . 1 . Ballistic Cannon 4 | . 2 . 1 . . . . . . . . . . . . . 1 . . . . . . . Launcher 4 | . . . 1 . . 1 . . . . . . . . . . . . . . . . . 2 Special Weapon 9 | 1 . . . . . . . . 3 . . . 1 . 1 1 1 . . . 1 . . . Impact Weapon 1 | . . . . . . . . . . . . . . . . . . . . . . . . 1 Slashing Weapon 7 | . . . . 1 . . . . 2 1 . . . . . . . . . . 1 1 . 1 Piercing Weapon 3 | . . . . . . . . . . . . . 1 . . . . . . . . . 1 1 Special Melee Weapon . | . . . . . . . . . . . . . . . . . . . . . . . . . Unidentified Prototypes 48 | . . . 2 . . 4 . . 1 . . . 10 . . . . 4 . 2 9 1 2 13 Parts Lost 76 | . 1 . 7 . 20 4 3 3 . 1 . . 6 . 2 . 1 . . . 1 4 3 20 Power 10 | . 1 . . . 4 1 1 . . . . . 1 . . . . . . . . . 1 1 Propulsion 22 | . . . 2 . 5 2 1 2 . . . . 1 . . . . . . . . 2 . 7 Utility 31 | . . . 3 . 6 1 . 1 . 1 . . 3 . 2 . 1 . . . . . 2 11 Weapon 13 | . . . 2 . 5 . 1 . . . . . 1 . . . . . . . 1 2 . 1 Highest Loss Streak 8 | . 1 . 5 . 8 2 2 1 . 1 . . 5 . 2 . 1 . . . 1 2 1 6 To Critical Strikes . | . . . . . . . . . . . . . . . . . . . . . . . . . Average Backups 12 | 3 7 7 16 18 17 17 16 15 12 12 13 13 12 11 12 11 12 12 13 12 13 13 13 8 Power . | . . . . . . . . . . . . . . 1 1 1 1 1 1 1 . 1 1 . Propulsion 2 | 2 2 2 3 5 7 5 5 4 3 2 2 2 1 2 1 2 1 1 1 2 2 . . . Utility 4 | . 3 3 6 6 5 5 6 6 4 4 5 4 4 3 6 5 5 5 5 3 4 5 4 3 Weapon 2 | . 1 1 4 6 4 4 3 3 3 2 2 3 2 2 1 2 2 3 3 3 2 2 4 2 Tool/Special . | . . . . . . . . . . . . . . . . . . . . . . . . . Unused Backups 43 | 4 8 . 7 1 2 2 . . 9 . . 1 . . . . 1 . 1 1 2 2 1 1 Power 4 | . 1 . . . . . . . 1 . . . . . . . . . . . . 1 1 . Propulsion 18 | 4 4 . 3 . 2 1 . . 2 . . . . . . . 1 . . . 1 . . . Utility 14 | . 1 . . 1 . 1 . . 6 . . 1 . . . . . . 1 1 1 1 . . Weapon 6 | . 2 . 4 . . . . . . . . . . . . . . . . . . . . . Tool/Special 1 | . . . . . . . . . . . . . . . . . . . . . . . . 1 Average Slot Usage (%) 88 | . 91 100 88 100 90 80 79 67 86 96 100 100 98 78 98 96 95 99 100 98 97 85 84 58 Engine 6 | . 13 14 11 11 6 3 6 7 7 5 . . . . . . . . . . . . . . Core 1 | . . . . . 1 3 . . . 4 11 11 10 5 2 . . . . . . . . . Reactor 1 | . . . . . . . . . . . . . . . 7 10 10 10 10 9 8 4 3 4 Treads 10 | . 28 28 32 33 22 . . . . . . . . . . . . . . . . . . . Leg 3 | . . . . . 9 32 20 6 . . . . . . . . . . . . . . . . Hover 15 | . . . . . . . . 5 38 35 35 35 35 29 31 31 31 31 31 28 26 25 26 20 Device 9 | . . . . 11 9 11 15 8 7 9 11 11 10 12 22 26 25 25 26 22 20 17 19 7 Storage 7 | . 14 14 11 11 9 7 7 7 7 5 5 5 5 5 5 5 5 5 5 4 4 4 4 2 Processor 7 | . . . . . 8 1 7 7 12 15 17 17 17 11 12 10 10 10 10 14 16 17 14 8 Protection 7 | . 6 14 10 11 4 5 6 7 7 4 5 5 4 5 5 5 5 5 5 4 4 4 4 6 Energy Gun 2 | . 7 . . . . 6 14 14 . . . . . . . . . . . . . . . . Ballistic Gun 4 | . 4 . 14 20 17 2 . . . . . . . . . . . . . . 1 3 . . Ballistic Cannon 4 | . 15 28 7 . . . . . . . . . . . . . . . . . . . . . Slashing Weapon 2 | . . . . 1 . 1 . . 4 6 5 5 6 5 5 5 5 5 5 4 4 3 . . Peak Build Rating 193 | 7 11 11 20 21 36 57 50 49 69 88 90 91 121 99 136 134 135 133 133 153 175 185 193 181 Average Rating 57 | 6 9 10 15 20 28 40 48 40 51 84 89 90 100 89 128 129 128 128 133 145 154 180 185 133 On Entrance 81 | . 6 10 10 20 21 12 39 46 42 69 88 90 91 80 99 134 128 124 133 133 153 168 177 176 Avg Prop Armor Cover (%) 4 | . . . . 6 . 4 . . . . . . 2 . . . . . . . . 2 3 6 Naked Turns . | . . . . . . . . . . . . . . . . . . . . . . . . . Heaviest Build 102 | 11 24 59 60 60 60 76 68 67 58 56 56 56 56 68 73 71 80 77 77 77 89 96 102 81 Greatest Support 105 | 40 40 40 60 60 80 83 53 41 56 68 68 68 87 68 84 84 84 84 84 84 83 103 103 105 Greatest Overweight (x) 3 | 1 . 1 . 1 1 1 1 3 1 . . . . . . . . . . . 1 1 . 1 Average Overweight (x) . | . . . . . . . 1 2 . . . . . . . . . . . . . . . . Largest Inventory Capacity 20 | 8 8 20 20 20 20 20 20 20 20 15 15 15 15 15 15 15 15 15 15 15 15 15 15 15 Average Capacity 15 | 7 8 14 20 20 20 20 20 20 16 15 15 15 15 15 15 15 15 15 15 15 15 15 15 10 Most Carried 20 | 8 8 13 20 20 20 20 19 17 19 15 15 15 15 15 15 14 15 15 15 15 15 15 15 15 Average Carried 13 | 3 7 8 17 19 18 18 17 16 13 14 15 14 14 12 14 13 14 14 14 14 14 13 14 10 Final Capacity 20 | 8 8 20 20 20 20 20 20 20 15 15 15 15 15 15 15 15 15 15 15 15 15 15 15 5 Final Carried 20 | 5 7 9 20 20 18 20 16 17 15 15 15 15 15 15 13 14 15 15 15 15 15 14 14 5 Class Distribution -------------------- 41% | Mutant 25% | Scavenger-Mutant 13% | Scavenger-Ninja 9% | Commander-Mutant 7% | Commander-Gladiator Dominant Class ---------------- Mutant | -10/Materials Mutant | -10/Mines Mutant | -9/Materials Scavenger-Mutant | -9/Mines Scavenger-Mutant | -8/Materials Mutant | -7/Factory Mutant | -7/Storage Commander-Mutant | -7/Recycling Commander-Gladiator | -7/Scraptown Scavenger-Mutant | -5/Factory Scavenger-Mutant | -5/Upper Caves Scavenger-Mutant | -5/Upper Caves Scavenger-Mutant | -5/Warlord Scavenger-Mutant | -4/Proximity Caves Scavenger-Mutant | -4/Factory Scavenger-Ninja | -4/Upper Caves Scavenger-Ninja | -4/Upper Caves Scavenger-Ninja | -4/Zhirov Scavenger-Ninja | -3/Proximity Caves Scavenger-Ninja | -3/Research Scavenger-Ninja | -3/Testing Scavenger-Ninja | -2/Research Scavenger-Ninja | -2/Quarantine Mutant | -2/Protoforge Resources | -11 -10 -10 -9 -9 -8 -7 -7 -7 -7 -5 -5 -5 -5 -4 -4 -4 -4 -4 -3 -3 -3 -2 -2 -2 ----------- Run | Yrd Mat Min Mat Min Mat Fac Sto Rec Scr Fac Upp Upp War Pro Fac Upp Upp Zhi Pro Res Tes Res Qua Frg Matter Collected 6327 | 257 265 80 877 162 1149 296 219 34 166 95 10 . 360 188 139 47 287 . . 195 724 77 354 346 Remotely . | . . . . . . . . . . . . . . . . . . . . . . . . . Salvage Created 9988 | 97 504 50 1513 180 1606 863 469 240 83 196 . . 62 105 439 . 58 . . 269 729 842 744 939 Parts 504 | 10 24 8 81 8 72 43 22 9 12 4 . . 2 5 23 . 6 . . 16 55 35 38 31 Haulers Intercepted 13 | . 2 . 5 . 2 1 . . . 1 . . . . . . . . . . . 2 . . Recyclers Shooed 8 | . . 1 2 . 3 . . 1 . . . . . . . . . . . 1 . . . . Parts Field Recycled . | . . . . . . . . . . . . . . . . . . . . . . . . . Retrieved Matter . | . . . . . . . . . . . . . . . . . . . . . . . . . Parts Self-Destructed 29 | . . . . . . . . . . . . . . 25 . . 4 . . . . . . . Prevented . | . . . . . . . . . . . . . . . . . . . . . . . . . Parts Restored . | . . . . . . . . . . . . . . . . . . . . . . . . . Kills | -11 -10 -10 -9 -9 -8 -7 -7 -7 -7 -5 -5 -5 -5 -4 -4 -4 -4 -4 -3 -3 -3 -2 -2 -2 ------- Run | Yrd Mat Min Mat Min Mat Fac Sto Rec Scr Fac Upp Upp War Pro Fac Upp Upp Zhi Pro Res Tes Res Qua Frg Combat Hostiles Destroyed 156 | . 8 6 33 8 27 12 10 4 . 1 . . 4 1 5 . 4 . . 1 4 14 3 11 Melee 30 | . . . . . . . . . . 1 . . . 1 5 . . . . 1 4 10 3 5 Guns 70 | . 5 . 12 8 26 8 7 4 . . . . . . . . . . . . . . . . Cannons 21 | . 3 6 10 . . . . . . . . . . . . . . . . . . 2 . . AOE 29 | . . . 11 . 1 3 2 . . . . . 4 . . . 4 . . . . 2 . 2 Classes Destroyed 22 | 2 8 . 1 1 4 1 . . 1 . . . 2 . . . . . . . 1 1 . . Worker 11 | . 3 . 1 . 1 3 . . . . . . . . 1 . . . . 2 . . . . Builder 4 | . . . . . 1 . 2 . . . . . . . . . . . . . . . 1 . Tunneler 4 | 2 . . . 1 1 . . . . . . . . . . . . . . . . . . . Hauler 13 | . 2 . 5 . 2 1 . . . 1 . . . . . . . . . . . 2 . . Recycler 11 | 1 1 . 3 . 1 1 . . . . . . . . 1 . . . . 1 . . 2 . Mechanic 1 | . . . . . 1 . . . . . . . . . . . . . . . . . . . Operator 4 | . 1 . 2 . . . . . . . . . . . . . . . . . . . 1 . Watcher 8 | . 1 . 1 . 2 . . . . . . . . . . . . . . . 2 2 . . Swarmer 31 | . 1 6 10 3 3 . 3 1 . . . . . . . . 4 . . . . . . . Cutter 2 | . . . . . . . . . . . . . . . . . . . . . . 2 . . Grunt 51 | . 6 . 15 2 12 6 6 . . . . . . . . . . . . . . 3 1 . Brawler 3 | . . . . . 1 . . . . . . . 2 . . . . . . . . . . . Duelist 1 | . . . . . . . . . . . . . 1 . . . . . . . . . . . Protector 1 | . . . . . . . . . . . . . 1 . . . . . . . . . . . Researcher 2 | . . . . . . . . . . . . . . . . . . . . . 1 . . 1 Sentry 30 | . . . 8 . 10 3 1 3 . 1 . . . 1 . . . . . . . . . 3 Demolisher 2 | . . . . . . . . . 2 . . . . . . . . . . . . . . . Hunter 4 | . . . . . 1 1 . . . . . . . . . . . . . . . . . 2 Programmer 20 | . . . . . . 2 . . . . . . . . 5 . . . . 1 4 4 2 2 Hotshot 2 | . . . . . . . . . . . . . . . . . . . . . . . . 2 Decapitator 2 | . . . . . . . . . . . . . . . . . . . . . . . . 2 Subdweller 1 | . 1 . . . . . . . . . . . . . . . . . . . . . . . Botcube 1 | . 1 . . . . . . . . . . . . . . . . . . . . . . . Assembled 8 | . . . . 3 . . . . . . . . . . . . . . . . . 5 . . Best Kill Streak 13 | 1 2 3 13 3 4 6 3 2 . 1 . . 4 1 4 . 2 . . 2 2 4 4 4 Combat Bots Only 6 | . 2 3 6 3 3 3 3 2 . 1 . . 4 1 2 . 2 . . 1 2 4 2 4 Max Kills in Single Turn 4 | 1 1 1 3 2 1 4 2 1 1 1 . . 1 1 1 . 1 . . 1 1 1 1 1 Gunslinging 1 | . . . . 1 . . . . . . . . . . . . . . . . . . . . Exploded 3 | . . . 3 . 1 2 2 . . . . . 1 . . . 1 . . . . 1 . 1 Melee 1 | . . . . . . . . . . 1 . . . 1 1 . . . . 1 1 1 1 1 Uniques/NPCs Destroyed . | . . . . . . . . . . . . . . . . . . . . . . . . . Combat | -11 -10 -10 -9 -9 -8 -7 -7 -7 -7 -5 -5 -5 -5 -4 -4 -4 -4 -4 -3 -3 -3 -2 -2 -2 -------- Run | Yrd Mat Min Mat Min Mat Fac Sto Rec Scr Fac Upp Upp War Pro Fac Upp Upp Zhi Pro Res Tes Res Qua Frg Hostile Shots Fired 1239 | . 16 17 149 28 179 148 78 15 7 8 . . 75 16 30 . 15 . . 10 16 90 44 298 Missed 425 | . 7 5 35 9 42 61 27 6 1 5 . . 39 6 11 . 9 . . 5 8 29 22 98 Hits 814 | . 9 12 114 19 137 87 51 9 6 3 . . 36 10 19 . 6 . . 5 8 61 22 200 Melee 11 | . . . . . . . . . . . . . 1 . . . . . . . . 7 . 3 Projectile 803 | . 9 12 114 19 137 87 51 9 6 3 . . 35 10 19 . 6 . . 5 8 54 22 197 AOE 7 | . . . . . . . . . . . . . 2 . . . . . . . . . . 5 Critical Strikes 42 | . . . 1 . 15 . 1 . . . . . 3 1 . . . . . 1 . 4 . 16 Actively Blocked 13 | . . . . . . . . . . . . . . . . . . . . 1 . . . 12 Part Disruptions 6 | . . . . 1 . 1 . . . . . . 1 . . . . . . . . 3 . . Damage Taken 16610 | . 276 99 1312 244 2515 1101 655 135 77 72 . . 1028 242 373 . 180 . . 119 182 1612 790 5598 Core 2475 | . 62 7 137 . 369 142 102 6 . . . . 170 49 59 . 16 . . 23 . 137 23 1173 Absorbed by Shields 33 | . . . . . . . . . 22 . . . . . 11 . . . . . . . . . Redirected to Shielding 119 | . . . . . . . . . . . . . . . . . . . . . . . . 119 Regen/Repaired (Parts) 2691 | . . . . . . . . . . . . . 12 . . . . . . . . 604 460 1615 Core Remaining (%) 75 | 100 . 72 . 65 32 . . . 64 . . . . 78 . . . . 93 . 98 . . . Volleys Fired 568 | 4 69 11 102 22 139 41 36 8 3 . . . 16 . . . 13 . . . 21 20 36 27 Largest 2 | 1 2 2 2 2 2 2 2 2 1 . . . 1 . . . 1 . . . 1 1 1 2 Hottest 300 | 40 90 60 63 46 50 130 160 160 . . . . 30 . . . 56 . . . 45 120 120 300 Shots Fired 942 | 4 125 22 186 44 271 68 68 16 3 . . . 16 . . . 13 . . . 21 20 36 29 Gun 676 | 4 101 . 105 44 271 65 64 16 . . . . . . . . . . . . 4 2 . . Cannon 195 | . 24 22 76 . . . . . . . . . . . . . 5 . . . . 13 30 25 Launcher 43 | . . . 5 . . 3 4 . . . . . 14 . . . 8 . . . . 5 . 4 Special 28 | . . . . . . . . . 3 . . . 2 . . . . . . . 17 . 6 . Kinetic 606 | . 52 22 181 44 271 25 . . . . . . . . . . 5 . . . 4 2 . . Thermal 178 | 4 35 . . . . 27 28 16 . . . . . . . . . . . . . 13 30 25 Explosive 39 | . . . 5 . . . 3 . . . . . 14 . . . 8 . . . . 5 . 4 Electromagnetic 91 | . 38 . . . . 16 37 . . . . . . . . . . . . . . . . . Robot Hit Streak 24 | 2 13 8 12 9 24 16 18 7 1 . . . 10 . . . 4 . . . 9 5 6 7 Robot Miss Streak 6 | 1 3 1 6 2 4 4 3 3 1 . . . 1 . . . 3 . . . 1 3 3 2 Penetration Max 1 | . . . . . . 1 . . . . . . . . . . . . . . . . . . Secondary Targets 8 | . . . 2 1 4 . 1 . . . . . . . . . . . . . . . . . Max Gunslinging Chain 1 | . . . 1 1 1 . 1 . . . . . . . . . . . . . . . . . Shots Hit Robots 765 | 3 92 11 117 28 197 53 47 12 4 15 . . 11 5 12 . 2 . . 11 39 51 26 29 Core Hits 395 | 2 58 5 57 13 63 42 29 15 2 5 . . 16 1 6 . 6 . . 5 14 22 9 25 Critical Kills 2 | . . . . . 2 . . . . . . . . . . . . . . . . . . . Critical Parts Destroyed 4 | . . . 1 1 . 2 . . . . . . . . . . . . . . . . . . Critical Strikes 44 | . 3 . 5 1 2 2 . . . 6 . . . 1 1 . . . . 3 4 9 3 4 Destroy 7 | . . . 2 1 2 2 . . . . . . . . . . . . . . . . . . Blast 3 | . . . 3 . . . . . . . . . . . . . . . . . . . . . Corrupt 3 | . 3 . . . . . . . . . . . . . . . . . . . . . . . Sever 24 | . . . . . . . . . . 6 . . . 1 1 . . . . 3 4 9 . . Impale 7 | . . . . . . . . . . . . . . . . . . . . . . . 3 4 Melee Attacks 249 | . . . . 2 . 12 . . 8 17 1 . 8 5 22 3 . . . 13 39 73 19 27 Kinetic 4 | . . . . . . . . . . . . . . . . . . . . . . . . 4 Impact . | . . . . . . . . . . . . . . . . . . . . . . . . . Slashing 201 | . . . . 2 . 12 . . 8 17 1 . 8 5 20 3 . . . 13 39 73 . . Piercing 42 | . . . . . . . . . . . . . . . . . . . . . . . 19 23 Entropic 2 | . . . . . . . . . . . . . . . 2 . . . . . . . . . Sneak Attacks 16 | . . . . . . . . . 2 1 . . . . 2 . . . . 4 . 2 4 1 Combat Hostiles . | . . . . . . . . . . . . . . . . . . . . . . . . . Follow-up Attacks 5 | . . . . . . . . . . 4 . . . . 1 . . . . . . . . . Damage Inflicted 24259 | 34 899 258 2718 427 3666 1805 1121 346 213 565 . . 989 254 708 . 274 . . 689 2032 3857 1383 2021 Guns 8263 | 34 534 . 1202 427 3333 1289 941 342 . . . . . . . . . . . . 104 57 . . Cannons 2564 | . 305 229 796 . . . . . . . . . . . . . . . . . . 407 347 480 Explosions 3830 | . . . 648 . 289 491 161 . . . . . 989 . . . 274 . . . . 316 . 662 Melee 9349 | . . . . . . . . . 213 565 . . . 254 708 . . . . 689 1928 3077 1036 879 Ramming 253 | . 60 29 72 . 44 25 19 4 . . . . . . . . . . . . . . . . Kinetic 7051 | . 454 229 1998 427 3333 449 . . . . . . . . . . . . . . 104 57 . . Thermal 3179 | 34 286 . . . 75 653 586 342 . . . . . . . . . . . . . 407 347 449 Explosive 3500 | . . . 648 . 214 308 89 . . . . . 989 . . . 274 . . . . 316 . 662 Electromagnetic 896 | . 99 . . . . 370 427 . . . . . . . . . . . . . . . . . Impact 31 | . . . . . . . . . . . . . . . . . . . . . . . . 31 Slashing 7341 | . . . . . . . . . 213 565 . . . 254 615 . . . . 689 1928 3077 . . Piercing 1915 | . . . . . . . . . . . . . . . . . . . . . . . 1036 879 Entropic 93 | . . . . . . . . . . . . . . . 93 . . . . . . . . . Highest Corruption 37 | . . . . . . 1 1 2 . . . . 6 6 6 6 6 6 6 3 4 6 11 37 Average Corruption 6 | . . . . . . 1 1 1 . . . . 4 6 2 6 6 6 6 2 3 2 8 23 Corruption Purged . | . . . . . . . . . . . . . . . . . . . . . . . . . Corruption Blocked . | . . . . . . . . . . . . . . . . . . . . . . . . . Effects 148 | . . . . . . . . 12 . . . . 1 13 9 8 10 4 2 4 19 3 16 47 Message Errors 35 | . . . . . . . . 3 . . . . . 3 1 2 3 . 1 1 5 1 6 9 Matter Fused 33 | . . . . . . . . 4 . . . . . 3 1 2 1 1 . 2 8 1 2 8 Heat Flow Errors 26 | . . . . . . . . 2 . . . . . 4 3 2 2 1 1 1 3 . 3 4 Energy Discharges 10 | . . . . . . . . 1 . . . . 1 . 1 . 1 . . . 1 1 1 3 Parts Fused 3 | . . . . . . . . . . . . . . 1 . . . . . . . . 1 1 Data Loss (minor) 15 | . . . . . . . . 1 . . . . . 1 3 1 2 2 . . 1 . 1 3 Data Loss (major) 6 | . . . . . . . . 1 . . . . . 1 . . 1 . . . 1 . . 2 Misfires 1 | . . . . . . . . . . . . . . . . . . . . . . . . 1 Alerts 6 | . . . . . . . . . . . . . . . . 1 . . . . . . 2 3 Misdirections 13 | . . . . . . . . . . . . . . . . . . . . . . . . 13 Overload Shots . | . . . . . . . . . . . . . . . . . . . . . . . . . Overflow Damage 1850 | . 16 18 57 . 40 . . . . . . . . . 108 . 35 . . 66 318 429 505 258 Projectiles 177 | . 16 18 1 . . . . . . . . . . . . . . . . . . 82 6 54 Explosions 159 | . . . 56 . 40 . . . . . . . . . . . 35 . . . . 28 . . Melee 1514 | . . . . . . . . . . . . . . . 108 . . . . 66 318 319 499 204 Knockbacks 14 | . 2 5 4 . 1 . 1 . . . . . . . . . . . . . . . . 1 Impact 4 | . . . 1 . 1 . 1 . . . . . . . . . . . . . . . . 1 Kinetic 9 | . 2 4 3 . . . . . . . . . . . . . . . . . . . . . Secondary 1 | . . 1 . . . . . . . . . . . . . . . . . . . . . . Self-Inflicted Damage 516 | . . . . . 72 32 35 . . . . . . . . . 63 . . . . 235 . 79 Shots 14 | . . . . . 1 2 2 . . . . . . . . . 2 . . . . 5 . 2 Rammed 31 | . 12 10 6 . 3 . . . . . . . . . . . . . . . . . . . Targets Rammed 47 | 1 13 10 7 . 10 2 3 1 . . . . . . . . . . . . . . . . Kicked 13 | . . . . . 7 2 3 1 . . . . . . . . . . . . . . . . Crushed 3 | 1 1 . 1 . . . . . . . . . . . . . . . . . . . . . Highest Temperature 350 | 2 255 . 17 19 28 204 128 105 . 3 . . 62 244 201 160 233 99 252 181 208 350 209 209 Average Temperature 59 | 2 60 . 2 12 8 25 34 30 . 3 . . 13 102 98 69 101 64 129 53 33 43 49 105 Received Heat Transfer 2782 | . 60 . 504 92 891 171 231 24 34 27 . . 100 30 . . . . . . 9 276 54 279 Effects 1 | . . . . . . . . . . . . . . . . . . . . . . 1 . . Matter Decay 1 | . . . . . . . . . . . . . . . . . . . . . . 1 . . Siege Activations . | . . . . . . . . . . . . . . . . . . . . . . . . . Martial Activations . | . . . . . . . . . . . . . . . . . . . . . . . . . Shielding Activations . | . . . . . . . . . . . . . . . . . . . . . . . . . Robots Disrupted . | . . . . . . . . . . . . . . . . . . . . . . . . . Combat Hostiles . | . . . . . . . . . . . . . . . . . . . . . . . . . Robots Corrupted 3 | . . . 1 . . 1 1 . . . . . . . . . . . . . . . . . Combat Hostiles 2 | . . . . . . 1 1 . . . . . . . . . . . . . . . . . Parts Fried 4 | . . . 1 . . 1 2 . . . . . . . . . . . . . . . . . Impact Corruptions 1 | . . . 1 . . . . . . . . . . . . . . . . . . . . . Robots Melted . | . . . . . . . . . . . . . . . . . . . . . . . . . Combat Hostiles . | . . . . . . . . . . . . . . . . . . . . . . . . . Parts Melted 9 | . 3 . . . 1 3 1 1 . . . . . . . . . . . . . . . . Heat Transferred 5316 | 75 625 . . . 50 1425 1325 762 . . . . . . . . . . . . . 259 407 388 Parts Sabotaged . | . . . . . . . . . . . . . . . . . . . . . . . . . Parts Stolen . | . . . . . . . . . . . . . . . . . . . . . . . . . Parts Stripped 36 | . . . . . . . . . . . . . . . . . . . . . . . . 36 Power Chain Reactions 1 | . . . . . . 1 . . . . . . . . . . . . . . . . . . Alert | -11 -10 -10 -9 -9 -8 -7 -7 -7 -7 -5 -5 -5 -5 -4 -4 -4 -4 -4 -3 -3 -3 -2 -2 -2 ------- Run | Yrd Mat Min Mat Min Mat Fac Sto Rec Scr Fac Upp Upp War Pro Fac Upp Upp Zhi Pro Res Tes Res Qua Frg Maximum Alert Level 2 | . . . 2 . 2 1 1 . . . . . . . . . . . . . . . . . Low Security (%) 85 | 100 100 100 19 100 64 66 76 100 . 100 . . . . 100 . . . . 100 100 100 100 100 Level 1 11 | . . . 64 . 11 33 23 . . . . . . . . . . . . . . . . . Level 2 3 | . . . 15 . 23 . . . . . . . . . . . . . . . . . . . Level 3 . | . . . . . . . . . . . . . . . . . . . . . . . . . Level 4 . | . . . . . . . . . . . . . . . . . . . . . . . . . Level 5 . | . . . . . . . . . . . . . . . . . . . . . . . . . High Security . | . . . . . . . . . . . . . . . . . . . . . . . . . Max Security . | . . . . . . . . . . . . . . . . . . . . . . . . . Peak Influence 609 | 5 144 85 441 199 609 358 234 115 . 30 . . . . 84 . . . . 44 124 92 195 159 Initial 212 | . . . . 129 . 212 74 75 . . . . . . 32 . . . . . 15 55 48 90 Average 81 | . 41 7 242 52 201 189 166 20 . 2 . . . . 28 . . . . 22 49 30 97 94 Influence Increases 7306 | 15 539 175 1074 126 1055 517 290 232 . 52 . 60 607 80 246 . 195 . . 132 537 354 399 621 Destroy 0b10 Robot/C 3480 | . 280 120 660 100 540 240 200 80 . 20 . . 400 20 100 . 80 . . 20 140 180 60 240 Destroy 0b10 Robot/NC 355 | 15 50 . 60 5 45 25 10 5 . 5 . . 10 . 10 . . . . 15 45 20 30 5 Destroy Leader 724 | . 70 20 182 20 148 82 40 . . 10 . . . . 30 . 10 . . . 34 28 10 40 Allied During Kill 183 | . 34 . . . 4 . . 17 . . . . 122 . . . . . . . 6 . . . Trap Triggered on 0b10 20 | . . . 20 . . . . . . . . . . . . . . . . . . . . . Successful Hack 386 | . 28 5 23 . 8 29 . 40 . . . . . . 9 . . . . 24 101 . 86 33 Select Force Hacks 180 | . 60 . 30 . . . . 90 . . . . . . . . . . . . . . . . Disable Machine 495 | . . 15 45 . 45 90 . . . 15 . . . . . . . . . . 105 . 90 90 Anti-Garrison Action 150 | . . . . . 150 . . . . . . . . . . . . . . . . . . . Destroy Structure 523 | . 2 . 39 1 55 21 25 . . 2 . . . . 52 . . . . 28 76 111 48 63 Partial Spotted 60 | . . . 15 . . . . . . . . . . . 15 . . . . . . 15 . 15 Lose Combat Pursuer 750 | . 15 15 . . 60 30 15 . . . . 60 75 60 30 . 105 . . 45 30 . 75 135 Influence Decreases 7157 | 15 539 175 742 458 588 821 259 405 21 32 20 60 509 126 280 18 120 75 . 104 466 367 324 633 Entered New Map 1062 | . . . . 203 . 255 89 119 21 . 8 . . 98 20 8 . 75 . . 13 44 38 71 Time Decay 5114 | 15 529 175 522 255 432 526 140 266 . 32 12 60 350 24 260 10 110 . . 104 395 289 246 362 Lost Part 662 | . 10 . 70 . 156 40 30 20 . . . . 60 . . . 10 . . . 2 34 30 200 Lost Ally 169 | . . . . . . . . . . . . . 99 4 . . . . . . 56 . 10 . Purge Threat 150 | . . . 150 . . . . . . . . . . . . . . . . . . . . . Squads Dispatched 55 | . 4 . 5 . 9 4 4 . . 1 . . . 1 4 . . . . 2 7 6 2 6 Investigation 10 | . 3 . 1 . 1 1 1 . . 1 . . . . . . . . . 1 . 1 . . Extermination 14 | . . . . . . 2 1 . . . . . . . 2 . . . . 1 2 2 2 2 Reinforcement 22 | . 1 . 4 . 3 1 2 . . . . . . . 2 . . . . . 4 3 . 2 Assault 6 | . . . . . 2 . . . . . . . . 1 . . . . . . 1 . . 2 Garrison 3 | . . . . . 3 . . . . . . . . . . . . . . . . . . . Intercept . | . . . . . . . . . . . . . . . . . . . . . . . . . Searches Triggered . | . . . . . . . . . . . . . . . . . . . . . . . . . Construction Impeded 4 | . . . . . 2 1 . . . . . . . . . . . . . . . . . 1 Haulers Reinforced 3 | . . . . . . . 1 . . . . . . . . . . . . . . 2 . . Active Scanning Responses . | . . . . . . . . . . . . . . . . . . . . . . . . . Cargo Convoy Interrupts 1 | . . . . . . 1 . . . . . . . . . . . . . . . . . . Stealth | -11 -10 -10 -9 -9 -8 -7 -7 -7 -7 -5 -5 -5 -5 -4 -4 -4 -4 -4 -3 -3 -3 -2 -2 -2 --------- Run | Yrd Mat Min Mat Min Mat Fac Sto Rec Scr Fac Upp Upp War Pro Fac Upp Upp Zhi Pro Res Tes Res Qua Frg Distress Signals 29 | . 2 . 6 1 5 1 1 . . . . . 3 . 1 . . . . . 6 1 2 . Communications Jammed . | . . . . . . . . . . . . . . . . . . . . . . . . . Distress Signals . | . . . . . . . . . . . . . . . . . . . . . . . . . Times Spotted 412 | 1 22 7 51 7 41 27 16 4 23 1 . 1 77 8 13 . 9 . . 3 19 28 19 35 Peak Tracking Total 35 | 1 5 3 8 2 6 6 3 1 10 1 . 4 35 5 4 . 5 . . 3 9 6 10 10 Tactical Retreats 47 | . 1 1 . 1 4 1 1 . 1 . . 1 8 3 2 . 2 . . 3 4 5 4 5 ECM-based Alert Blocks 36 | . . . . . . . . . . . . . 6 5 . . . . . . 8 7 10 . Traps | -11 -10 -10 -9 -9 -8 -7 -7 -7 -7 -5 -5 -5 -5 -4 -4 -4 -4 -4 -3 -3 -3 -2 -2 -2 ------- Run | Yrd Mat Min Mat Min Mat Fac Sto Rec Scr Fac Upp Upp War Pro Fac Upp Upp Zhi Pro Res Tes Res Qua Frg Traps Triggered 13 | . 3 . . . . 1 1 . . . . . . . 2 . . . . . . 2 . 4 Indirectly . | . . . . . . . . . . . . . . . . . . . . . . . . . Trap Hack Attempts . | . . . . . . . . . . . . . . . . . . . . . . . . . Triggered . | . . . . . . . . . . . . . . . . . . . . . . . . . Disarmed 6 | . 6 . . . . . . . . . . . . . . . . . . . . . . . Reprogrammed 6 | . . . 6 . . . . . . . . . . . . . . . . . . . . . Reused 2 | . . . 2 . . . . . . . . . . . . . . . . . . . . . Traps Extracted . | . . . . . . . . . . . . . . . . . . . . . . . . . Installed 5 | . . 4 . . . . . . 1 . . . . . . . . . . . . . . . Triggered 2 | . . . 2 . . . . . . . . . . . . . . . . . . . . . Most Traps Carried 4 | . . 4 . . . . . . . . . . . . . . . . . . . . . . Machines | -11 -10 -10 -9 -9 -8 -7 -7 -7 -7 -5 -5 -5 -5 -4 -4 -4 -4 -4 -3 -3 -3 -2 -2 -2 ---------- Run | Yrd Mat Min Mat Min Mat Fac Sto Rec Scr Fac Upp Upp War Pro Fac Upp Upp Zhi Pro Res Tes Res Qua Frg Machines Disabled 43 | . . 1 3 . 4 6 . . 2 1 . 1 4 . . . . . . . 7 . 6 8 Max in Single Turn 3 | . . 1 1 . 3 3 . . 1 1 . 1 1 . . . . . . . 1 . 1 1 Garrison Access 4 | . . . . . 1 . . . . . . . . . . . . . . 1 1 . . 1 Machines Repaired . | . . . . . . . . . . . . . . . . . . . . . . . . . Machines Dismantled . | . . . . . . . . . . . . . . . . . . . . . . . . . Machines Sabotaged . | . . . . . . . . . . . . . . . . . . . . . . . . . Overloaded Fab Kills . | . . . . . . . . . . . . . . . . . . . . . . . . . Hacking | -11 -10 -10 -9 -9 -8 -7 -7 -7 -7 -5 -5 -5 -5 -4 -4 -4 -4 -4 -3 -3 -3 -2 -2 -2 --------- Run | Yrd Mat Min Mat Min Mat Fac Sto Rec Scr Fac Upp Upp War Pro Fac Upp Upp Zhi Pro Res Tes Res Qua Frg Machines Accessed 104 | . 9 1 11 . 6 10 . 9 2 2 2 1 2 . 7 . . 4 . 7 11 7 9 4 Terminals 61 | . 7 1 7 . 5 6 . 5 . . . . . . 4 . . . . 4 9 3 7 3 Fabricators 5 | . . . . . . 2 . . . 1 . . . . 1 . . . . . . 1 . . Repair Stations 1 | . . . . . . . . . . . . . . . . . . . . . . 1 . . Recycling Units 11 | . 2 . 2 . . 1 . 4 . 1 . . . . . . . . . 1 . . . . Scanalyzers 11 | . . . 2 . 1 . . . . . . . . . 2 . . . . 1 1 2 2 . Garrison Access 4 | . . . . . . 1 . . . . . . . . . . . . . 1 1 . . 1 Total Hacks 247 | . 30 1 34 . 17 21 . 21 12 3 5 1 5 . 16 . . 17 . 13 19 12 14 6 Successful 149 | . 19 1 21 . 6 6 . 9 12 3 5 1 5 . 9 . . 17 . 5 9 7 11 3 Failed 96 | . 10 . 13 . 11 15 . 12 . . . . . . 6 . . . . 8 10 5 3 3 Catastrophic 16 | . . . . . . 4 . 3 . . . . . . 1 . . . . 2 4 1 1 . Database Lockouts 2 | . 1 . . . . . . . . . . . . . 1 . . . . . . . . . Manual 105 | . 22 . 21 . 14 10 1 19 . 1 . . . . 3 . . . . 4 3 . 6 1 Terminals 150 | . 28 1 25 . 15 15 . 14 . . . . . . 9 . . . . 7 16 4 11 5 Fabricators 10 | . . . . . . 4 . . . 2 . . . . 2 . . . . . . 2 . . Repair Stations 2 | . . . . . . . . . . . . . . . . . . . . . . 2 . . Recycling Units 16 | . 2 . 3 . . 1 . 7 . 1 . . . . . . . . . 2 . . . . Scanalyzers 24 | . . . 6 . 2 . . . . . . . . . 5 . . . . 2 2 4 3 . Garrison Access 5 | . . . . . . 1 . . . . . . . . . . . . . 2 1 . . 1 Terminal Hacks 79 | . 10 1 5 . 1 3 . . 12 . 5 1 5 . 3 . . 17 . 1 6 1 5 3 Record 18 | . . . . . . . . . 5 . 4 . . . . . . 5 . . 2 . 2 . Part Schematic 6 | . . . . . . 1 . . . . . . . . . . . 4 . . 1 . . . Robot Analysis 14 | . 2 . . . . 1 . . 7 . . . . . . . . 4 . . . . . . Prototype ID Bank 13 | . 2 . 1 . . . . . . . . . 4 . . . . 4 . 1 1 . . . Open Door 5 | . . . . . . . . . . . 1 1 1 . . . . . . . 1 1 . . Branch Access Points 3 | . 1 . . . . 1 . . . . . . . . 1 . . . . . . . . . Emergency Access Points 1 | . 1 . . . . . . . . . . . . . . . . . . . . . . . Terminal Index 2 | . 1 . . . . . . . . . . . . . . . . . . . . . 1 . Unreport Threat 1 | . . . 1 . . . . . . . . . . . . . . . . . . . . . Locate Traps 1 | . . . . . . . . . . . . . . . 1 . . . . . . . . . Disarm Traps 2 | . 2 . . . . . . . . . . . . . . . . . . . . . . . Reprogram Traps 2 | . . . 2 . . . . . . . . . . . . . . . . . . . . . Hauler Manifests 3 | . 1 . . . . . . . . . . . . . 1 . . . . . . . . 1 Zone Layout 6 | . . 1 1 . 1 . . . . . . . . . . . . . . . . . 2 1 Proto ID Catalog 1 | . . . . . . . . . . . . . . . . . . . . . . . . 1 Protovariant Controls 1 | . . . . . . . . . . . . . . . . . . . . . 1 . . . Fabricator Hacks 6 | . . . . . . 2 . . . 2 . . . . . . . . . . . 2 . . Load Schematic 3 | . . . . . . 1 . . . 1 . . . . . . . . . . . 1 . . Build 3 | . . . . . . 1 . . . 1 . . . . . . . . . . . 1 . . Repair Station Hacks 2 | . . . . . . . . . . . . . . . . . . . . . . 2 . . Scan Component 1 | . . . . . . . . . . . . . . . . . . . . . . 1 . . Repair 1 | . . . . . . . . . . . . . . . . . . . . . . 1 . . Recycling Unit Hacks 1 | . . . . . . . . . . . . . . . . . . . . 1 . . . . Retrieve Components 1 | . . . . . . . . . . . . . . . . . . . . 1 . . . . Scanalyzer 16 | . . . 6 . . . . . . . . . . . 4 . . . . . 1 2 3 . Insert Component 2 | . . . 1 . . . . . . . . . . . . . . . . . 1 . . . Analyze 2 | . . . 2 . . . . . . . . . . . . . . . . . . . . . Retrieve Study 12 | . . . 3 . . . . . . . . . . . 4 . . . . . . 2 3 . Garrison Access Hacks 2 | . . . . . . . . . . . . . . . . . . . . 1 1 . . . Seal Access 2 | . . . . . . . . . . . . . . . . . . . . 1 1 . . . Unauthorized Hacks 43 | . 9 . 10 . 5 1 . 9 . 1 . . . . 2 . . . . 2 1 . 3 . Terminals 35 | . 7 . 9 . 5 1 . 6 . . . . . . 1 . . . . 2 1 . 3 . Assimilate 3 | . . . . . . . . . . . . . . . . . . . . . 1 . 2 . Botnet 12 | . 1 . 4 . 1 1 . 1 . . . . . . 1 . . . . 2 . . 1 . Operators 1 | . 1 . . . . . . . . . . . . . . . . . . . . . . . Skim 19 | . 5 . 5 . 4 . . 5 . . . . . . . . . . . . . . . . Fabricators 1 | . . . . . . . . . . . . . . . 1 . . . . . . . . . Haulers 1 | . . . . . . . . . . . . . . . 1 . . . . . . . . . Repair Stations . | . . . . . . . . . . . . . . . . . . . . . . . . . Recycling Units 7 | . 2 . 1 . . . . 3 . 1 . . . . . . . . . . . . . . Tunnel 6 | . 2 . 1 . . . . 3 . . . . . . . . . . . . . . . . Fedlink 1 | . . . . . . . . . . 1 . . . . . . . . . . . . . . Scanalyzers . | . . . . . . . . . . . . . . . . . . . . . . . . . Garrison Access . | . . . . . . . . . . . . . . . . . . . . . . . . . Data Cores Recovered 1 | . . . 1 . . . . . . . . . . . . . . . . . . . . . Used . | . . . . . . . . . . . . . . . . . . . . . . . . . Hacking Detections 65 | . 4 . 7 . 4 10 . 5 . . . . . . 5 . . . . 7 9 5 6 3 Full Trace Events 3 | . . . . . . 1 . 1 . . . . . . . . . . . 1 . . . . Feedback Events 2 | . . . . . . . . 1 . . . . . . . . . . . 1 . . . . Corruption 2 | . . . . . . . . 1 . . . . . . . . . . . 1 . . . . Feedback Blocked . | . . . . . . . . . . . . . . . . . . . . . . . . . Robot Schematics Acquired 10 | . . . . . . . . . . . . . . . . . . . . . 9 . . 1 Robots Built . | . . . . . . . . . . . . . . . . . . . . . . . . . Authchips . | . . . . . . . . . . . . . . . . . . . . . . . . . Time . | . . . . . . . . . . . . . . . . . . . . . . . . . Total Robot Build Rating . | . . . . . . . . . . . . . . . . . . . . . . . . . Part Schematics Acquired 33 | . . . 1 . . 1 . . . . . . . . . . . 4 . . 18 . 6 3 Parts Built 5 | . . . . . . 2 . . . 2 . . . . . . . . . . . 1 . . Authchips 2 | . . . . . . . . . . 1 . . . . . . . . . . . 1 . . Time 204 | . . . . . . 95 . . . 47 . . . . . . . . . . . 62 . . Total Part Build Rating 27 | . . . . . . 10 . . . 10 . . . . . . . . . . . 7 . . Part Studies Acquired 12 | . . . 3 . . . . . . . . . . . 4 . . . . . . 2 3 . Parts Repaired 1 | . . . . . . . . . . . . . . . . . . . . . . 1 . . Time 103 | . . . . . . . . . . . . . . . . . . . . . . 103 . . Parts Recycled . | . . . . . . . . . . . . . . . . . . . . . . . . . Recycled Matter . | . . . . . . . . . . . . . . . . . . . . . . . . . Retrieved Matter . | . . . . . . . . . . . . . . . . . . . . . . . . . Retrieved Components 8 | . . . . . . . . . . . . . . . . . . . . 8 . . . . Parts Scanalyzed 2 | . . . 1 . . . . . . . . . . . . . . . . . 1 . . . Part Schematics Acquired 1 | . . . 1 . . . . . . . . . . . . . . . . . . . . . Parts Damaged 1 | . . . . . . . . . . . . . . . . . . . . . 1 . . . Bothacking | -11 -10 -10 -9 -9 -8 -7 -7 -7 -7 -5 -5 -5 -5 -4 -4 -4 -4 -4 -3 -3 -3 -2 -2 -2 ------------ Run | Yrd Mat Min Mat Min Mat Fac Sto Rec Scr Fac Upp Upp War Pro Fac Upp Upp Zhi Pro Res Tes Res Qua Frg Used RIF Installer . | . . . . . . . . . . . . . . . . . . . . . . . . . Robots Hacked 15 | . . . . . . . . . . . . . . . . . . . . . 12 . 3 . Non-combat 1 | . . . . . . . . . . . . . . . . . . . . . 1 . . . Combat 1 | . . . . . . . . . . . . . . . . . . . . . 1 . . . Robot Hacks Applied 2 | . . . . . . . . . . . . . . . . . . . . . 2 . . . parse_system 2 | . . . . . . . . . . . . . . . . . . . . . 2 . . . Manual 13 | . . . . . . . . . . . . . . . . . . . . . 10 . 3 . Relay Couplers Released 1 | . . . . . . . . . . . . . . . . . . . . . . . . 1 Machine Destruction 1 | . . . . . . . . . . . . . . . . . . . . . . . . 1 Fabnet Peak Effective % . | . . . . . . . . . . . . . . . . . . . . . . . . . Robots Rewired 27 | . . . . . . . . 18 . . . . 5 1 . . . . . . 3 . . . Allies Hacked . | . . . . . . . . . . . . . . . . . . . . . . . . . Hacks Repelled . | . . . . . . . . . . . . . . . . . . . . . . . . . Allies | -11 -10 -10 -9 -9 -8 -7 -7 -7 -7 -5 -5 -5 -5 -4 -4 -4 -4 -4 -3 -3 -3 -2 -2 -2 -------- Run | Yrd Mat Min Mat Min Mat Fac Sto Rec Scr Fac Upp Upp War Pro Fac Upp Upp Zhi Pro Res Tes Res Qua Frg Total Allies 33 | 1 . . . 1 . . . 18 1 . . . 5 1 . . . . . . 4 . 2 . Largest Group 19 | 1 1 . . 1 1 . . 18 19 . . . 5 1 . . . . . . 3 . 1 . Highest-Rated Group 414 | 29 29 . . 31 31 . . 355 414 . . . 223 47 . . . . . . 237 . 26 . Highest-Rated Ally 79 | 29 29 . . 31 31 . . 40 66 . . . 49 47 . . . . . . 79 . 26 . Initial UFD Resources 58 | . . . . . . . . . . 37 47 47 47 51 51 51 51 51 55 55 55 58 58 58 Total Orders 18 | . . . . . . . . . 5 . . . 11 . . . . . . . 1 . 1 . STAY 15 | . . . . . . . . . 2 . . . 11 . . . . . . . 1 . 1 . FOLLOW 2 | . . . . . . . . . 2 . . . . . . . . . . . . . . . GUARD 1 | . . . . . . . . . 1 . . . . . . . . . . . . . . . Ally Attacks 237 | 1 58 . . . 6 . . 6 67 . . . 79 . . . . . . . 20 . . . Total Damage 6731 | 12 637 . . . 84 . . 84 1486 . . . 3351 . . . . . . . 1077 . . . Kills 50 | 1 9 . . . . . . . 20 . . . 18 . . . . . . . 2 . . . Allies Corrupted 1 | . . . . . . . . . . . . . . . . . . . . . 1 . . . Allies Melted . | . . . . . . . . . . . . . . . . . . . . . . . . . Intel | -11 -10 -10 -9 -9 -8 -7 -7 -7 -7 -5 -5 -5 -5 -4 -4 -4 -4 -4 -3 -3 -3 -2 -2 -2 ------- Run | Yrd Mat Min Mat Min Mat Fac Sto Rec Scr Fac Upp Upp War Pro Fac Upp Upp Zhi Pro Res Tes Res Qua Frg Active Infowar (turns) 9355 | 203 . . . 504 1326 . . . . 162 537 346 1487 477 834 207 338 96 109 289 945 826 490 179 Optics 1218 | . . . . . 1218 . . . . . . . . . . . . . . . . . . . Sensors 6345 | . . . . . . . . . . 162 537 346 1487 . 389 207 314 96 109 289 945 810 480 174 Terrain 4051 | . . . . . . . . . . . . . . . 744 207 338 96 109 289 940 826 490 12 Seismic 1281 | 203 . . . 504 574 . . . . . . . . . . . . . . . . . . . Triangulation 4603 | . . . . . . . . . . . . . . 470 834 207 338 96 109 289 945 826 489 . ECM 957 | . . . . . . . . . . . . . 140 249 . . . . . . 332 81 144 11 Robot Analysis Total 14 | . 2 . . . . 1 . . 7 . . . . . . . . 4 . . . . . . Derelict Logs Recovered 8 | . . 2 . 2 . . . . . . 2 1 . 1 . . . . . . . . . . Drone Launches . | . . . . . . . . . . . . . . . . . . . . . . . . . Drone Recoveries . | . . . . . . . . . . . . . . . . . . . . . . . . . Exploration | -11 -10 -10 -9 -9 -8 -7 -7 -7 -7 -5 -5 -5 -5 -4 -4 -4 -4 -4 -3 -3 -3 -2 -2 -2 ------------- Run | Yrd Mat Min Mat Min Mat Fac Sto Rec Scr Fac Upp Upp War Pro Fac Upp Upp Zhi Pro Res Tes Res Qua Frg Turns Passed 25467 | 2883 1893 1990 2222 992 1350 1472 299 1519 2778 209 537 346 1496 490 834 207 338 96 109 289 945 826 524 823 Spaces Moved 18413 | 242 978 843 1147 483 490 787 95 541 2386 270 938 545 1676 429 1146 368 557 153 211 480 1153 954 772 769 Core 10 | 10 . . . . . . . . . . . . . . . . . . . . . . . . Treads 4011 | 232 978 843 1147 483 328 . . . . . . . . . . . . . . . . . . . Legs 1395 | . . . . . 162 787 95 351 . . . . . . . . . . . . . . . . Wheels . | . . . . . . . . . . . . . . . . . . . . . . . . . Hover 12997 | . . . . . . . . 190 2386 270 938 545 1676 429 1146 368 557 153 211 480 1153 954 772 769 Flight . | . . . . . . . . . . . . . . . . . . . . . . . . . Fastest Speed 36 | 50 160 160 160 160 130 122 190 100 44 56 56 56 42 56 51 51 51 51 51 47 47 44 44 36 Average Speed 92 | 155 160 185 160 160 150 155 191 235 87 56 56 56 55 56 51 51 51 51 51 48 49 48 44 58 Slowest Speed 330 | 160 160 240 160 200 200 195 193 330 100 56 56 56 59 56 51 51 51 51 51 51 151 146 50 157 Overloaded Moves 15 | . . . . . . . . . . . . . 15 . . . . . . . . . . . Propulsion Burnouts . | . . . . . . . . . . . . . . . . . . . . . . . . . Robots Hopped 3 | . 3 . . . . . . . . . . . . . . . . . . . . . . . Potential Cave-ins 22 | . . . . . . . . . . . . . 2 . . . . . . . . . 1 19 Cave-ins Triggered 2 | . . . . . . . . . . . . . . . . . . . . . . . 1 1 Teleports 3 | . . . . . . . . . . . . . . . . . . . . . . . 1 2 Exploration Rate (%) 58 | 21 94 99 87 86 43 28 30 97 88 8 85 71 87 50 32 55 71 60 42 15 72 24 84 22 Regions Visited 24 Branch Regions 16 Pre-discovered Areas 11 | . 2 2 1 . . . . 3 . . . . . . . . . 3 . . . . . . Known Exits Taken 19 | . 1 1 . . . 1 1 . 1 1 1 1 1 1 1 1 1 1 1 1 1 1 1 . Unknown Exits Taken 5 | 1 . . 1 1 1 . . 1 . . . . . . . . . . . . . . . . Scrap Searched 17 | . . 1 . 1 . . . . 5 . 3 2 . . . 1 3 . 1 . . . . . Spaces Dug 202 | . . . . 2 . 11 . . 6 1 11 . 11 2 32 15 10 . . 15 38 30 11 7 Terrain Destroyed 524 | . . . 35 2 54 20 33 . 5 1 11 . 100 2 31 15 74 . . 15 38 38 18 32 Melee 64 | . . . . 2 . 11 . . 2 1 1 . 7 . 2 3 . . . . 3 23 4 5 Projectile 51 | . . . 1 . . . . . . . . . . . . . 3 . . . . 6 14 27 AOE 299 | . . . 34 . 54 9 33 . . . . . 89 . . . 71 . . . . 9 . . Terrain Rammed . | . . . . . . . . . . . . . . . . . . . . . . . . . Walls Destroyed . | . . . . . . . . . . . . . . . . . . . . . . . . . Machines Disabled . | . . . . . . . . . . . . . . . . . . . . . . . . . Actions | -11 -10 -10 -9 -9 -8 -7 -7 -7 -7 -5 -5 -5 -5 -4 -4 -4 -4 -4 -3 -3 -3 -2 -2 -2 --------- Run | Yrd Mat Min Mat Min Mat Fac Sto Rec Scr Fac Upp Upp War Pro Fac Upp Upp Zhi Pro Res Tes Res Qua Frg Total 25663 | 2743 1178 1244 1350 652 926 946 149 763 3076 308 947 585 2213 671 1366 381 596 170 212 522 1478 1240 897 1050 Wait 5482 | 2473 86 365 26 139 242 47 7 40 615 12 8 39 435 211 172 1 9 . . 6 187 165 42 155 Move 18382 | 241 971 842 1146 482 490 786 94 540 2385 269 937 544 1675 428 1145 367 556 152 210 479 1152 953 770 768 Hop 3 | . 3 . . . . . . . . . . . . . . . . . . . . . . . Pick Up 143 | 8 11 6 24 2 12 10 . 1 22 2 . 1 5 2 4 . 2 2 1 4 9 6 8 1 Fast Attach 134 | 8 6 . 8 . 9 12 1 3 3 4 . . 19 1 4 . 3 7 . 6 14 3 1 22 Attach 84 | . 3 . 5 . 7 8 4 2 7 2 . . 4 5 4 1 3 2 . 2 4 5 6 10 Detach 45 | 2 1 . 3 . . 5 . 2 4 . . . 3 2 2 2 3 . . 3 2 2 1 8 Swap 131 | . 3 1 12 3 8 11 4 . 3 4 1 . 12 1 7 7 4 . . 3 27 10 7 3 Drop 176 | 6 12 5 17 2 10 12 . . 25 2 . 1 22 1 3 . 3 7 1 6 23 3 6 9 Fire 568 | 4 69 11 102 22 139 41 36 8 3 . . . 16 . . . 13 . . . 21 20 36 27 Melee 242 | . . . . 2 . 12 . . 8 13 1 . 7 5 20 3 . . . 13 39 73 19 27 Ram . | . . . . . . . . . . . . . . . . . . . . . . . . . Kick 13 | . . . . . 7 2 3 1 . . . . . . . . . . . . . . . . Crush 33 | 1 13 10 7 . 2 . . . . . . . . . . . . . . . . . . . Escape Stasis 26 | . . . . . . . . . . . . . . . 5 . . . . . . . 1 20 Rewire 195 | . . . . . . . . 166 . . . . 15 14 . . . . . . . . . . Trap 5 | . . 4 . . . . . . 1 . . . . . . . . . . . . . . . Miscellaneous 1 | . . . . . . . . . . . . . . 1 . . . . . . . . . . Route ------- -11/Scrapyard -10/Materials (discovered 5 exits: *Mat x3 / *Min / Sub) -10/Mines (discovered 4 exits: *Mat x2 / [*Exi] / *Sub) -9/Materials (discovered 3 exits: *Mat x2 / [*Min]) -9/Mines (discovered 3 exits: *Mat x2 / [*Zio]) -8/Materials -7/Factory (discovered 3 exits: *Sto / Low x2) -7/Storage -7/Recycling (discovered 2 exits: *Fac / *Scr) -7/Scraptown (discovered 2 exits: *Fac x2) -5/Factory -5/Upper Caves -5/Upper Caves (discovered 2 exits: *Fac / *War) -5/Warlord -4/Proximity Caves -4/Factory (discovered 5 exits: *Res x2 / *Upp x2 / Arm) -4/Upper Caves -4/Upper Caves (discovered 2 exits: *Res / *Zhi) -4/Zhirov -3/Proximity Caves -3/Research -3/Testing -2/Research -2/Quarantine (discovered 3 exits: [*Acc] / *Sec / *Frg) -2/Protoforge History --------- Turn | Location | Event 17 | -11/Scrapyard | Discovered new exit (range 13) 102 | -11/Scrapyard | Botcube activated 112 | -11/Scrapyard | Botcube completed mutation into legged form, armed with 2 guns. 2228 | -11/Scrapyard | Assembled infested the area 2884 | -11/Scrapyard | Entered Materials 2884 | -10/Materials | Accompanied by 1 ally 2885 | -10/Materials | Build established: Mutant 3062 | -10/Materials | Discovered new exit (range 7) 3425 | -10/Materials | Discovered new exit (range 4) 3526 | -10/Materials | Central database locked down 3586 | -10/Materials | Learned location of 2 exits from Mines 3600 | -10/Materials | Discovered new exit (range 16) 3676 | -10/Materials | Learned Storage emergency access door positions 3708 | -10/Materials | Learned location of 1 exit from Storage 3731 | -10/Materials | Learned Storage security intel 3765 | -10/Materials | Identified exit to Subcaves 3765 | -10/Materials | Identified exit to Materials 3784 | -10/Materials | Derelicts attacked the area 3807 | -10/Materials | Learned Storage non-interactive machine intel 4087 | -10/Materials | Identified exit to Mines 4634 | -10/Materials | Murdered Mutated Botcube 4634 | -10/Materials | Destroyed Mutated Botcube 4649 | -10/Materials | Found Botcube 4777 | -10/Materials | Entered Mines 4860 | -10/Mines | Found a Scrap Suit stashed away for nefarious purposes 4889 | -10/Mines | Deemed a non-threat by the Exiles lab entrance 4889 | -10/Mines | Discovered new exit (range 5) 4929 | -10/Mines | Found a hidden stash of uninstalled traps 5123 | -10/Mines | Learned location of Storage (-7) 5253 | -10/Mines | Learned Materials trap positions 5718 | -10/Mines | Discovered exit to Subcaves (range 6) 5941 | -10/Mines | YI-UF0 nonchalantly dropped a Grenade Launcher on the ground 6767 | -10/Mines | Entered Materials 6767 | -9/Materials | Evolved 2 slots: Propulsion x1, Utility x1 6768 | -9/Materials | Loaded intel: 14 trap records 6920 | -9/Materials | Discovered new exit (range 16) 7346 | -9/Materials | Discovered new exit (range 6) 7407 | -9/Materials | Lost 5 parts (2n1u2w) 8324 | -9/Materials | Discovered new exit (range 16) 8526 | -9/Materials | Build established: Scavenger-Mutant 8989 | -9/Materials | Entered Mines 9025 | -9/Mines | Met a Derelict bent on vengeance 9086 | -9/Mines | Learned Materials stockpile data 9168 | -9/Mines | Learned Materials terminal intel 9348 | -9/Mines | A Derelict revealed a hidden shortcut to a safe place 9431 | -9/Mines | Assembled infested the area 9896 | -9/Mines | Discovered new exit (range 6) 9922 | -9/Mines | Discovered new exit (range 16) 9933 | -9/Mines | Received a Mining Laser from a helpful Derelict 9981 | -9/Mines | Entered Materials 9981 | -8/Materials | Accompanied by 1 ally 9981 | -8/Materials | Evolved 2 slots: Propulsion x1, Utility x1 9983 | -8/Materials | Loaded intel: 12 terminal locations 10425 | -8/Materials | Lost 5 parts (1p3n1w) 10680 | -8/Materials | Build established: Mutant 10722 | -8/Materials | Garrison activated, responded to threat 11065 | -8/Materials | Build established: Scavenger-Mutant 11307 | -8/Materials | Discovered new exit (range 4) 11329 | -8/Materials | Core integrity fell below 50% 11331 | -8/Materials | Entered Factory 11331 | -7/Factory | Evolved 2 slots: Propulsion x1, Utility x1 11361 | -7/Factory | Lost 8 parts (1p2n2u3w) 12308 | -7/Factory | Build established: Mutant 12477 | -7/Factory | Identified exit to Storage 12477 | -7/Factory | Identified exit to Lower Caves 12524 | -7/Factory | Fabricated Cmb. Airjet? 12686 | -7/Factory | Cargo convoy interrupted 12714 | -7/Factory | Found Prototype Processor 12714 | -7/Factory | Identified Exp. Terrain Scan Processor 12803 | -7/Factory | Entered Storage 12804 | -7/Storage | Identified exit to Recycling 12807 | -7/Storage | Loaded intel: 20 non-interactive machine locations 13094 | -7/Storage | Used back door to open Recycling access 13102 | -7/Storage | Entered Recycling 13753 | -7/Recycling | Discovered new exit (range 12) 13759 | -7/Recycling | Build established: Commander-Mutant 14554 | -7/Recycling | Scanned before Scraplab entrance 14569 | -7/Recycling | Entered Scraplab 14578 | -7/Recycling | Discovered new exit (range 3) 14605 | -7/Recycling | Learned 4 Factory zone layouts 14621 | -7/Recycling | Entered Scraptown 14621 | -7/Scraptown | Accompanied by 18 allies 14621 | -7/Scraptown | System corruption cleaned by C-Scrubber 14807 | -7/Scraptown | Heard Great Nut preacher, LISTEN AND RECITE! 14838 | -7/Scraptown | Discovered new exit (range 11) 15066 | -7/Scraptown | Visited IN-MT5's Study 15074 | -7/Scraptown | Visited Assassins FH 15110 | -7/Scraptown | Visited Cave Peace 15124 | -7/Scraptown | Visited Junk Repository 15172 | -7/Scraptown | Visited Artisan Demo Area 15232 | -7/Scraptown | Visited UFD Registry 15232 | -7/Scraptown | Registered with UFD as "Autocell" 15268 | -7/Scraptown | Visited Research Penetration Think Tank 15293 | -7/Scraptown | Visited Curators Association 15325 | -7/Scraptown | Visited Junk Repository 15355 | -7/Scraptown | Visited Analyses Database 15376 | -7/Scraptown | Visited Supply Room 15393 | -7/Scraptown | Visited Scrapoid Research Area 15410 | -7/Scraptown | Visited Abandonware Association 15419 | -7/Scraptown | Learned abandonware demo "OVRCLOCK.EXE" 15422 | -7/Scraptown | Learned abandonware demo "HACKBUD.EXE" 15422 | -7/Scraptown | Learned abandonware demo "MELTYB.EXE" 15449 | -7/Scraptown | Visited LU-1G1's Boring Crew 15488 | -7/Scraptown | Visited Derelict Rescue Squad 15847 | -7/Scraptown | Build established: Commander-Gladiator 15974 | -7/Scraptown | Found Scrap Suit 16293 | -7/Scraptown | Botcube activated 16315 | -7/Scraptown | Botcube completed mutation into legged form, armed with 2 guns. 16422 | -7/Scraptown | Attached CPS modules to Grenadier 4b. 16452 | -7/Scraptown | Attached CPS modules to Grenadier 4a. 16511 | -7/Scraptown | Found DRS Beacon 16847 | -7/Scraptown | Met Optimus 16847 | -7/Scraptown | Accepted into 0bPrime 17247 | -7/Scraptown | Civil war broke out across Scraptown 17258 | -7/Scraptown | Found DM-GVY's Chainsaw 17321 | -7/Scraptown | Identified exit to Factory 17365 | -7/Scraptown | Found Prototype Special Weapon 17367 | -7/Scraptown | Identified LU-1G1's Laser Shovel 17399 | -7/Scraptown | Entered Factory 17399 | -5/Factory | Evolved 4 slots: Power x1, Propulsion x1, Utility x2 17426 | -5/Factory | Lost 15 allies 17467 | -5/Factory | Fabricated Adv. Melee Analysis Suite (x2) 17543 | -5/Factory | Loaded intel: 8 recycling unit locations 17556 | -5/Factory | Discovered new exit (range 11) 17593 | -5/Factory | Identified exit to Upper Caves 17608 | -5/Factory | Entered Upper Caves 17749 | -5/Upper Caves | Learned Factory security intel 17896 | -5/Upper Caves | Learned Factory interactive machine intel 17917 | -5/Upper Caves | Discovered new exit (range 6) 17934 | -5/Upper Caves | Build established: Scavenger-Mutant 18100 | -5/Upper Caves | Entered an active Warlord outpost 18106 | -5/Upper Caves | Learned Factory emergency access door positions 18106 | -5/Upper Caves | Learned Extension security intel 18106 | -5/Upper Caves | Learned Factory terminal intel 18145 | -5/Upper Caves | Identified exit to Upper Caves 18145 | -5/Upper Caves | Entered another Upper Caves area 18153 | -5/Upper Caves | Found Alien Artifact 18290 | -5/Upper Caves | Discovered new exit (range 13) 18382 | -5/Upper Caves | Encountered a Warlord checkpoint 18464 | -5/Upper Caves | Discovered new exit (range 16) 18465 | -5/Upper Caves | Learned location of 1 exit from Factory 18472 | -5/Upper Caves | Identified exit to Warlord 18491 | -5/Upper Caves | Entered Warlord 18681 | -5/Warlord | Found Prototype Processor 18681 | -5/Warlord | Identified Exp. Target Analyzer 18683 | -5/Warlord | Found Prototype Device 18683 | -5/Warlord | Identified Thermal Barrier 18699 | -5/Warlord | Found Prototype Reactor 18771 | -5/Warlord | Visited the Vortex Lab 18772 | -5/Warlord | Warlord's base attacked by MAIN.C 18775 | -5/Warlord | Found Prototype Piercing Weapon 18775 | -5/Warlord | Identified Vortex Lance 19054 | -5/Warlord | Lost 5 allies 19081 | -5/Warlord | Build established: Scavenger-Gladiator 19122 | -5/Warlord | Warlord forces counterattacked 19220 | -5/Warlord | Spotted Executioner 19272 | -5/Warlord | Lost 31 allies 19274 | -5/Warlord | Rebuked by Warlord 19295 | -5/Warlord | Spotted Executioner 19406 | -5/Warlord | Identified Dimensional Node Initializer 19406 | -5/Warlord | Initialized slip node 19447 | -5/Warlord | Warlord base infiltrated, sounded retreat 19448 | -5/Warlord | Build established: Scavenger-Mutant 19490 | -5/Warlord | Attached CPS modules to Enhanced Demolisher. 19537 | -5/Warlord | Attached CPS modules to Enhanced Demolisher. 19540 | -5/Warlord | Spotted Striker 19546 | -5/Warlord | Spotted B-86 Titan 19548 | -5/Warlord | Spotted B-75 Beast 19572 | -5/Warlord | Spotted Executioner 19617 | -5/Warlord | Lost 15 allies 19839 | -5/Warlord | Spotted Striker 19972 | -5/Warlord | Spotted Striker 19983 | -5/Warlord | Discovered new exit (range 9) 19986 | -5/Warlord | Identified exit to Proximity Caves 19987 | -5/Warlord | Entered Proximity Caves 20017 | -4/Proximity Caves | Lost 5 parts (1p1n3u) 20118 | -4/Proximity Caves | Activated DRS Beacon 20368 | -4/Proximity Caves | Lost 3 allies 20394 | -4/Proximity Caves | Attracted the attention of an 0b10 outpost 20474 | -4/Proximity Caves | Discovered new exit (range 5) 20476 | -4/Proximity Caves | Identified exit to Factory 20477 | -4/Proximity Caves | Entered Factory 20477 | -4/Factory | Evolved 2 slots: Utility x2 20478 | -4/Factory | Identified exit to Research 20481 | -4/Factory | Loaded intel: 54 interactive machine locations 20482 | -4/Factory | Loaded intel: 26 terminal locations 20533 | -4/Factory | Found Quantum Capacitor 20736 | -4/Factory | Central database locked down 20751 | -4/Factory | Identified exit to Upper Caves 20751 | -4/Factory | Identified exit to Armory 20878 | -4/Factory | Discovered exit to Research (range 7) 21220 | -4/Factory | Build established: Scavenger-Ninja 21311 | -4/Factory | Entered Upper Caves 21347 | -4/Upper Caves | Encountered a Warlord checkpoint 21515 | -4/Upper Caves | Discovered new exit (range 7) 21518 | -4/Upper Caves | Identified exit to Upper Caves 21518 | -4/Upper Caves | Entered another Upper Caves area 21518 | -4/Upper Caves | Discovered exit to Research (range 10) 21840 | -4/Upper Caves | Found DCF Scrap (13 items) 21854 | -4/Upper Caves | Discovered new exit (range 5) 21854 | -4/Upper Caves | Spotted B-86 Titan 21855 | -4/Upper Caves | Identified exit to Zhirov 21856 | -4/Upper Caves | Entered Zhirov 21857 | -4/Zhirov | Discovered new exit (range 3) 21867 | -4/Zhirov | Met Zhirov 21876 | -4/Zhirov | Learned location of Testing (-3) 21876 | -4/Zhirov | Learned location of Command (-1) 21881 | -4/Zhirov | Zhirov requested help retrieving the SGEMP Prototype 21915 | -4/Zhirov | Found Alien Artifact 21915 | -4/Zhirov | Identified Integrated Dissipator 21915 | -4/Zhirov | Installed Integrated Dissipator, increased core heat dissipation (+20) 21926 | -4/Zhirov | Found Alien Artifact 21950 | -4/Zhirov | Identified exit to Proximity Caves 21952 | -4/Zhirov | Entered Proximity Caves 22054 | -3/Proximity Caves | Discovered exit to Research (range 5) 22061 | -3/Proximity Caves | Entered Research 22061 | -3/Research | Evolved 2 slots: Utility x2 22062 | -3/Research | Identified exit to Testing 22107 | -3/Research | Found Prototype Processor 22107 | -3/Research | Identified Spectral Analyzer 22350 | -3/Research | Entered Testing 22375 | -3/Testing | Found Prototype Energy Gun 22375 | -3/Testing | Identified Tachyon Dispersion Ray 22428 | -3/Testing | Found Prototype Device 22428 | -3/Testing | Identified 2N-1CE's Frost Array 22552 | -3/Testing | Protovariant out of control (PP-HTKPEK2T7O) 22552 | -3/Testing | Unleashed a protovariant (PP-HTKPEK2T7O) 22687 | -3/Testing | Discovered new exit (range 24) 22687 | -3/Testing | Found Prototype Device 22687 | -3/Testing | Identified AEGIS Remote Shield 22745 | -3/Testing | Found Prototype Device 22745 | -3/Testing | Identified Exp. Hardlight Generator 22903 | -3/Testing | Rewired DJ-JGI(K) 22905 | -3/Testing | Rewired BA-DMS(K) 22909 | -3/Testing | Rewired S9-NZB(K) 22914 | -3/Testing | Spotted Alpha 7 22929 | -3/Testing | Allies destroyed Alpha 7 22931 | -3/Testing | Found Exp. Melee Analysis Suite 22956 | -3/Testing | Found Prototype Processor 22956 | -3/Testing | Identified Exp. Targeting Computer 22960 | -3/Testing | Found Exp. ECM Suite 23054 | -3/Testing | Found Prototype Ballistic Gun 23054 | -3/Testing | Identified Multirail 23169 | -3/Testing | Identified Vortex Chain Reactor 23170 | -3/Testing | Found Hvy. Regenerative Plating 23174 | -3/Testing | Found Prototype Protection 23174 | -3/Testing | Identified SHELL Armor 23295 | -3/Testing | Identified exit to Research 23295 | -3/Testing | Entered Research 23295 | -2/Research | Evolved 2 slots: Propulsion x1, Utility x1 23408 | -2/Research | Repaired Broken Cmb. Linear Gravjet 23554 | -2/Research | Found Exp. Signal Interpreter 23568 | -2/Research | Assembled infested ambush trap array 23867 | -2/Research | Fabricated Assault Drone Bay? 24009 | -2/Research | Discovered new exit (range 22) 24121 | -2/Research | Identified exit to Quarantine 24121 | -2/Research | Entered Quarantine 24204 | -2/Quarantine | Found Exp. Core Analyzer 24225 | -2/Quarantine | Found Alien Energy Cannon 24237 | -2/Quarantine | Found Alien Artifact 24272 | -2/Quarantine | Identified Transdimensional Reconstructor 24272 | -2/Quarantine | Warped through subspace 24294 | -2/Quarantine | Build established: Scavenger-Scout 24320 | -2/Quarantine | Crushed by falling debris 24321 | -2/Quarantine | System corruption reached 10% 24367 | -2/Quarantine | Found Alien Impact Weapon 24372 | -2/Quarantine | Discovered new exit (range 7) 24471 | -2/Quarantine | Found Alien Artifact 24479 | -2/Quarantine | Found Dimensional Node Initializer 24484 | -2/Quarantine | Found Transdimensional Reconstructor 24571 | -2/Quarantine | Cryocooling Duct disabled 24586 | -2/Quarantine | Ambient heat levels rising (+20) 24586 | -2/Quarantine | Non-combat units ordered to evacuate 24605 | -2/Quarantine | Spotted Fortress 24641 | -2/Quarantine | Discovered new exit (range 5) 24641 | -2/Quarantine | Discovered new exit (range 6) 24643 | -2/Quarantine | Identified exit to Section 7 24645 | -2/Quarantine | Identified exit to Protoforge 24645 | -2/Quarantine | Entered Protoforge 24669 | -2/Protoforge | Build established: Scavenger-Ninja 24805 | -2/Protoforge | Superfortress began startup sequence 24833 | -2/Protoforge | Spotted Hotshot 24850 | -2/Protoforge | Lost 3 parts (3u) 24859 | -2/Protoforge | Spotted Hotshot 24867 | -2/Protoforge | Spotted Hotshot 24922 | -2/Protoforge | Identified Core Cannon 24929 | -2/Protoforge | Found Prototype Launcher 24929 | -2/Protoforge | Identified Cep. Concussive Dispersal Blaster 24951 | -2/Protoforge | Additional patrols dispatched to research labs 24956 | -2/Protoforge | Crushed by falling debris 24987 | -2/Protoforge | Lost 4 parts (1n3u) 25002 | -2/Protoforge | Found Prototype Protection 25002 | -2/Protoforge | Identified Cep. RG22 Armor 25004 | -2/Protoforge | Found Prototype Protection 25004 | -2/Protoforge | Identified Cep. Core Shell 25008 | -2/Protoforge | Found Prototype Device 25008 | -2/Protoforge | Identified Exp. Force Field 25024 | -2/Protoforge | Found Prototype Device 25024 | -2/Protoforge | Identified Crosscalibrator 25032 | -2/Protoforge | Spotted Immortal 25033 | -2/Protoforge | Spotted Decapitator 25033 | -2/Protoforge | Spotted Decapitator 25033 | -2/Protoforge | Spotted Decapitator 25033 | -2/Protoforge | Spotted Decapitator 25037 | -2/Protoforge | Destroyed Decapitator 25039 | -2/Protoforge | Destroyed Decapitator 25079 | -2/Protoforge | Core integrity fell below 50% 25097 | -2/Protoforge | System corruption reached 30% 25109 | -2/Protoforge | Lost 6 parts (1p4n1u) 25129 | -2/Protoforge | Initialized slip node 25135 | -2/Protoforge | Core integrity fell below 20% 25136 | -2/Protoforge | Identified Subatomic Replicator 25138 | -2/Protoforge | Warped through subspace 25138 | -2/Protoforge | Spotted Hotshot 25141 | -2/Protoforge | Spotted Hotshot 25165 | -2/Protoforge | Lost 5 parts (1n3u1w) 25170 | -2/Protoforge | Identified Core Stripper 25195 | -2/Protoforge | Destroyed Hotshot 25198 | -2/Protoforge | Destroyed Hotshot 25271 | -2/Protoforge | Spotted V174-e 25282 | -2/Protoforge | Found Prototype Hover Unit 25282 | -2/Protoforge | Identified Cep. Combat Aerolev Unit 25374 | -2/Protoforge | Build established: Mutant 25398 | -2/Protoforge | Found Cep. Concussive Dispersal Blaster 25424 | -2/Protoforge | Found Cep. Gyrokinetic System 25428 | -2/Protoforge | Identified Hpw. Transdimensional Reconstructor 25428 | -2/Protoforge | Warped through subspace 25436 | -2/Protoforge | Spotted Decapitator 25436 | -2/Protoforge | Spotted Decapitator 25436 | -2/Protoforge | Spotted Decapitator 25436 | -2/Protoforge | Spotted V817-u 25437 | -2/Protoforge | Spotted V970-p 25444 | -2/Protoforge | Scanned by Researcher 25457 | -2/Protoforge | Found Exp. Jetlance 25462 | -2/Protoforge | Found Exp. Terror Saw 25468 | -2/Protoforge | Destroyed by Decapitator with Experimental Terror Saw Last Messages --------------- 25444_ C-65 Expert is analyzing... 25444_ ALERT: Encountered unknown unique technology, formulating response. 25446_ C-65 Expert destroyed. 25448_ Extracted schematic archive: Exp. Terrain Scan Processor. 25448_ Extracted schematic archive: S-43 Plague. 25450_ Extracted schematic archive: Exp. Thermal Shield. 25450_ Extracted schematic archive: Centrium Greatsword. 25451_ Acquired 15 matter. 25452_ System corrupted: Matter fused (-5). 25453_ Research Cell breached. 25457_ Acquired Exp. Jetlance. 25462_ Acquired Exp. Terror Saw. 25465_ Slug penetrates Research Cell. 25465_ Slug penetrates Machine. 25466_ Knocked back. 25466_ Machine disabled. Map ----- +----------------------------------------------------+ | ?????????????????????????????????????????????????? | | ?????????????????????????????????????????????????? | | ?????????????????????????????????????????????????? | | ?????????????????????????????????????????????????? | | ?????????????????????????????????????????????????? | | ?????????????????????????????????????????????????? | | ?????????????????????????????????????????????????? | | ?????????????????????????????????????????????????? | | ?????????????????????????????????????????????????? | | ?????????????????????????????????????????????????? | | ?????????????????????????????????????????????????? | | ?????????????????????????????????????????????????? | | ?????????????????????????????????????????????????? | | ?????????????????????????????????????????????????? | | ?????????????????????????????????????????????????? | | ?????????????????????????????????????????????????? | | ?????????????????????????????????????????????????? | | ?????????????????????????????????????????????????? | | ?????????????????????????????????????????????????? | | ?????????????????????????????????????????????????? | | ?????????????????????????????????????????????????? | | ?????????????????????????????????????????????????? | | ??????????????##############?????????????????????? | | ??????????????#""""""""" ""#?????????????????????? | | ??????????????#"[[[/[] c c"#?????????????????????? | | ??????????????#"/[ [/[] [@"#?????????????????????? | | ???????????""?###"""" ""###?????????????????????? | | ???????????"] # "#??????????????????????? | | ??????????#" [# / ""#??????????????????????? | | ??????????#"/ " / """"#??????????????????????? | | ??????????#"]]" """#??????????????????????? | | ??????????#" ]" ""#??????????????????????? | | ??????????#"[]" c "#??????????????????????? | | ??????????#"/[" ! "#??????????????????????? | | ??????????#"]]" ##??????????????????????? | | ??????????###"" ""???????????????????????? | | ???????????# ""#??????????????????????? | | ???????????# #??????????????????????? | | ???????????###//### ####+##?????????????????????? | | ???????????#" # #?? "#?????????????????????? | | ???????????#" # #"" "#?????????????????????? | | ???????????#" " " ##??????????????????????? | | ???????????#" " " #??????????????????????? | | ???????????#" " " #??????????????????????? | | ???????????#" " " ##??????????????????????? | | ???????????#" " ""# # " "#?????????????????????? | | ???????????#"""#??# #"""""#?????????????????????? | | ???????????#?##???# #######?????????????????????? | | ??????????????????# #???????????????????????????? | | ??????????????????# #???????????????????????????? | +----------------------------------------------------+ Best States ------------- Heat Dissipation 169 Energy Generation 55 Energy Capacity 1435 Matter Stores 300 Matter Capacity 300 Sight Range 20 Robot Scan Range 18 Terrain Scan Range 24 Terrain Scan Density 1010 ECM Strength 3 Armor Coverage 600 Resistance: KI 30 Propulsion Shielding 90 Weapon Shielding 90 Weapon Cycling 15 Melee Speed Boost 30 Evasion (%) 70 Targeting Accuracy 6 Melee Accuracy 12 Target Analysis 10 Core Analysis 8 Recoil Reduction 4 Matter Filtering 50 Offensive Hacking 14 Defensive Hacking 10 Authchip Count 3 Item Schematics ----------------- Cmb. Airjet | -9/Materials | Scanalyzed Adv. Melee Analysis Suite | -7/Factory | Hacked Assault Drone Bay | -4/Zhirov | Free Exp. Heat Sink | -4/Zhirov | Free Exp. Optical Array | -4/Zhirov | Free Imp. Arc Thrower | -4/Zhirov | Free Adv. EM Disruption Field | -3/Testing | Archive Gravity Neutralizer | -3/Testing | Archive Hds. Centrium Wheel | -3/Testing | Archive Imp. Diametric Drive | -3/Testing | Archive Tesla Bomb Launcher | -3/Testing | Archive Exp. Hacking Suite | -3/Testing | Archive Exp. Flexi-carbon Leg | -3/Testing | Archive Enh. Flexi-carbon Leg | -3/Testing | Archive Centrium Heavy Armor Plating | -3/Testing | Archive Com. Mass Driver | -3/Testing | Archive Exp. Myomer Leg | -3/Testing | Archive Imp. Thermal Defense Suite | -3/Testing | Archive Hvy. Proton Cannon | -3/Testing | Archive Com. Particle Reactor | -3/Testing | Archive Com. Tesla Bomb Launcher | -3/Testing | Archive Exp. Targeting Computer | -3/Testing | Archive Imp. Energy Well | -3/Testing | Archive Hvy. Regenerative Plating | -3/Testing | Hacked Diametric Drive | -2/Quarantine | Archive Exp. Core Analyzer | -2/Quarantine | Archive Imp. Q-thruster | -2/Quarantine | Archive Hvy. Dispersion Rifle | -2/Quarantine | Archive Adv. Remote Shield | -2/Quarantine | Archive Exp. Field Recycling Unit | -2/Quarantine | Archive Exp. Terrain Scan Processor | -2/Protoforge | Archive Exp. Thermal Shield | -2/Protoforge | Archive Centrium Greatsword | -2/Protoforge | Archive Robot Schematics ------------------ A-15 Conveyor | -3/Testing | Archive A-27 Freighter | -3/Testing | Archive T-07 Excavator | -3/Testing | Archive H-77 Assassin | -3/Testing | Archive X-82 Rainmaker | -3/Testing | Archive B-74 Champion | -3/Testing | Archive K-01 Serf | -3/Testing | Archive Y-72 Warden | -3/Testing | Archive L-61 Swordsman | -3/Testing | Archive S-43 Plague | -2/Protoforge | Archive Fabricated ------------ Cmb. Airjet | x2 | -7/Factory Adv. Melee Analysis Suite | x2 | -5/Factory | Authchip Assault Drone Bay | x1 | -2/Research | Authchip Repaired ---------- Cmb. Linear Gravjet | 68% | -2/Research | Broken Studied --------- Mni. Grenade Launcher | -9/Materials | Hacked Rnf. Ion Engine | -9/Materials | Hacked Lgt. Treads | -9/Materials | Hacked Cmb. Gravmag System | -4/Factory | Hacked Cmb. Airjet | -4/Factory | Hacked Plasma Cutter | -4/Factory | Hacked Particle Reactor | -4/Factory | Hacked Antigrav Array | -2/Research | Hacked Cmb. Linear Gravjet | -2/Research | Hacked Enh. Nova Cannon | -2/Quarantine | Hacked Adv. Remote Datajack | -2/Quarantine | Hacked Enh. Force Lance | -2/Quarantine | Hacked Alien Tech Used ----------------- Dimensional Node Initializer Integrated Dissipator Transdimensional Reconstructor Core Cannon Subatomic Replicator Core Stripper High-powered Transdimensional Reconstructor Achievements -------------- None Challenges ------------ None Game ------ Seed ImprinterReactiveBotcube Manual? 0 Play Time 02:54:31 Cumulative 249.3 hours Start 2026.01.06 @ 19:37:55 End 2026.01.07 @ 19:44:53 Sessions 5 Manual Loads 0 Difficulty Rogue Special Mode None Game No. 237 Rogue 237 Adventurer 0 Explorer 0 Win Type - Total 11 Types 8/0/2/0/0/0/0/0/0/1 Lore% 88 Gallery% 78 Achievement% 62 Wizard Run 0 Options --------- Layout 1 ASCII 0 Keyboard 1 Movement Arrows Keybinds 0 Fullscreen 1 Font 24/Smallcaps Map View 50x40 Zoom Use 0% Tactical HUD 1 Map Filters NONE Filters NONE Steam 1 RUN: 27847e70-9273-4b3b-b398-ea1588cb7444